[Event "Titled Tuesday Blitz January 17 Late 2023"]
[White "Artemiev, Vladislav"]
[Black "Weetik, Vjacheslav"]
[WhiteFideId "24101605"]
[BlackFideId "4153472"]
[WhiteElo "2701"]
[BlackElo "2423"]
[Result "1-0"]
[Round "04"]
[TimeControl "180+2"]
[Date "2023.01.17"]
[WhiteClock "0:00:02"]
[BlackClock "0:00:02"]

1. e4 {[%clk 0:02:59]}  c6 {[%clk 0:03:00]} 2. d4 {[%clk 0:02:58]}  d5 {[%clk 0:03:00]} 3. exd5 {[%clk 0:02:58]}  cxd5 {[%clk 0:03:01]} 4. Bd3 {[%clk 0:02:59]}  Nc6 {[%clk 0:03:00]} 5. c3 {[%clk 0:02:59]}  Nf6 {[%clk 0:03:00]} 6. h3 {[%clk 0:02:57]}  g6 {[%clk 0:02:57]} 7. Nf3 {[%clk 0:02:53]}  Bf5 {[%clk 0:02:53]} 8. O-O {[%clk 0:02:51]}  Bg7 {[%clk 0:02:51]} 9. Bf4 {[%clk 0:02:42]}  O-O {[%clk 0:02:45]} 10. Re1 {[%clk 0:02:33]}  Qb6 {[%clk 0:02:34]} 11. Re2 {[%clk 0:02:23]}  Bxd3 {[%clk 0:02:21]} 12. Qxd3 {[%clk 0:02:22]}  Ne4 {[%clk 0:02:22]} 13. Na3 {[%clk 0:02:18]}  Rad8 {[%clk 0:02:08]} 14. Rae1 {[%clk 0:02:02]}  e6 {[%clk 0:01:58]} 15. Ng5 {[%clk 0:01:54]}  Nf6 {[%clk 0:01:45]} 16. h4 {[%clk 0:01:27]}  Rd7 {[%clk 0:01:22]} 17. Qe3 {[%clk 0:01:01]}  h6 {[%clk 0:00:50]} 18. Nf3 {[%clk 0:01:00]}  Ng4 {[%clk 0:00:50]} 19. Qd2 {[%clk 0:00:59]}  Kh7 {[%clk 0:00:43]} 20. Qd3 {[%clk 0:00:50]}  Kg8 {[%clk 0:00:35]} 21. Nb1 {[%clk 0:00:41]}  Qa6 {[%clk 0:00:26]} 22. Qxa6 {[%clk 0:00:40]}  bxa6 {[%clk 0:00:27]} 23. Nbd2 {[%clk 0:00:40]}  Rc8 {[%clk 0:00:19]} 24. Nb3 {[%clk 0:00:40]}  Bf8 {[%clk 0:00:19]} 25. Nc5 {[%clk 0:00:25]}  Bxc5 {[%clk 0:00:19]} 26. dxc5 {[%clk 0:00:26]}  a5 {[%clk 0:00:16]} 27. Nd4 {[%clk 0:00:23]}  e5 {[%clk 0:00:13]} 28. Nxc6 {[%clk 0:00:23]}  Rxc6 {[%clk 0:00:14]} 29. Bc1 {[%clk 0:00:13]}  e4 {[%clk 0:00:11]} 30. b4 {[%clk 0:00:08]}  Ne5 {[%clk 0:00:06]} 31. Rd1 {[%clk 0:00:06]}  h5 {[%clk 0:00:04]} 32. Rd4 {[%clk 0:00:04]}  Nd3 {[%clk 0:00:05]} 33. Bg5 {[%clk 0:00:04]}  f6 {[%clk 0:00:04]} 34. Bh6 {[%clk 0:00:03]}  Rb7 {[%clk 0:00:05]} 35. Bd2 {[%clk 0:00:03]}  axb4 {[%clk 0:00:04]} 36. cxb4 {[%clk 0:00:04]}  a5 {[%clk 0:00:04]} 37. Rxd5 {[%clk 0:00:04]}  Nxb4 {[%clk 0:00:04]} 38. Rd6 {[%clk 0:00:03]}  Rxd6 {[%clk 0:00:03]} 39. cxd6 {[%clk 0:00:04]}  f5 {[%clk 0:00:04]} 40. Bg5 {[%clk 0:00:03]}  Kf7 {[%clk 0:00:03]} 41. Rd2 {[%clk 0:00:03]}  Rd7 {[%clk 0:00:03]} 42. Rd4 {[%clk 0:00:02]}  Ke6 {[%clk 0:00:04]} 43. a3 {[%clk 0:00:02]}  Nd5 {[%clk 0:00:04]} 44. Ra4 {[%clk 0:00:02]}  Rxd6 {[%clk 0:00:04]} 45. Rxa5 {[%clk 0:00:02]}  Rc6 {[%clk 0:00:05]} 46. g3 {[%clk 0:00:01]}  Rc2 {[%clk 0:00:05]} 47. Kf1 {[%clk 0:00:02]}  Rc6 {[%clk 0:00:04]} 48. Ra8 {[%clk 0:00:02]}  Nc7 {[%clk 0:00:05]} 49. Ra7 {[%clk 0:00:02]}  Rc2 {[%clk 0:00:03]} 50. a4 {[%clk 0:00:01]}  Rc1+ {[%clk 0:00:02]} 51. Bxc1 {[%clk 0:00:01]}  Nd5 {[%clk 0:00:02]} 52. Be3 {[%clk 0:00:02]} 1-0


[Site "https://www.chess.com"]

[Event "Titled Tuesday Blitz January 17 Late 2023"]
[White "Martinez Alcantara, Jose Eduardo"]
[Black "Sebag, Marie"]
[WhiteFideId "3805662"]
[BlackFideId "617822"]
[WhiteElo "2619"]
[BlackElo "2430"]
[Result "1-0"]
[Round "04"]
[TimeControl "180+2"]
[Date "2023.01.17"]
[WhiteClock "0:00:39"]
[BlackClock "0:00:05"]

1. Nf3 {[%clk 0:03:00]}  d5 {[%clk 0:02:58]} 2. g3 {[%clk 0:03:00]}  c6 {[%clk 0:02:58]} 3. Bg2 {[%clk 0:03:00]}  Bg4 {[%clk 0:02:57]} 4. O-O {[%clk 0:02:59]}  Nd7 {[%clk 0:02:57]} 5. c4 {[%clk 0:02:56]}  e6 {[%clk 0:02:57]} 6. Qb3 {[%clk 0:02:56]}  Qb6 {[%clk 0:02:53]} 7. d3 {[%clk 0:02:56]}  Ngf6 {[%clk 0:02:51]} 8. Nc3 {[%clk 0:02:54]}  Be7 {[%clk 0:02:49]} 9. Be3 {[%clk 0:02:52]}  Qxb3 {[%clk 0:02:44]} 10. axb3 {[%clk 0:02:52]}  a6 {[%clk 0:02:43]} 11. Na4 {[%clk 0:02:49]}  O-O {[%clk 0:02:41]} 12. Rfc1 {[%clk 0:02:49]}  e5 {[%clk 0:02:32]} 13. h3 {[%clk 0:02:27]}  Bh5 {[%clk 0:02:17]} 14. g4 {[%clk 0:02:28]}  Bg6 {[%clk 0:02:16]} 15. Nh4 {[%clk 0:02:28]}  d4 {[%clk 0:01:57]} 16. Bd2 {[%clk 0:02:24]}  Rfe8 {[%clk 0:01:53]} 17. Nxg6 {[%clk 0:01:50]}  hxg6 {[%clk 0:01:51]} 18. c5 {[%clk 0:01:47]}  Bf8 {[%clk 0:01:42]} 19. b4 {[%clk 0:01:47]}  Rad8 {[%clk 0:01:31]} 20. Bg5 {[%clk 0:01:46]}  Rc8 {[%clk 0:01:21]} 21. Rd1 {[%clk 0:01:36]}  Nd5 {[%clk 0:01:14]} 22. Bd2 {[%clk 0:01:29]}  f6 {[%clk 0:01:06]} 23. e3 {[%clk 0:01:25]}  dxe3 {[%clk 0:00:58]} 24. fxe3 {[%clk 0:01:26]}  g5 {[%clk 0:00:58]} 25. Be4 {[%clk 0:01:11]}  Be7 {[%clk 0:00:54]} 26. Bxd5+ {[%clk 0:01:05]}  cxd5 {[%clk 0:00:54]} 27. d4 {[%clk 0:01:06]}  Rcd8 {[%clk 0:00:36]} 28. Nc3 {[%clk 0:01:05]}  Nb8 {[%clk 0:00:33]} 29. Be1 {[%clk 0:01:05]}  exd4 {[%clk 0:00:25]} 30. exd4 {[%clk 0:01:06]}  Nc6 {[%clk 0:00:25]} 31. b5 {[%clk 0:01:07]}  axb5 {[%clk 0:00:17]} 32. Nxb5 {[%clk 0:01:08]}  Bf8 {[%clk 0:00:17]} 33. Bf2 {[%clk 0:01:07]}  Re2 {[%clk 0:00:17]} 34. b3 {[%clk 0:01:07]}  Rde8 {[%clk 0:00:16]} 35. Nc3 {[%clk 0:01:07]}  Rc2 {[%clk 0:00:16]} 36. Rac1 {[%clk 0:01:07]}  Rxc1 {[%clk 0:00:15]} 37. Rxc1 {[%clk 0:01:08]}  Nb4 {[%clk 0:00:15]} 38. Ra1 {[%clk 0:01:06]}  Nd3 {[%clk 0:00:14]} 39. Rd1 {[%clk 0:00:59]}  Nxf2 {[%clk 0:00:13]} 40. Kxf2 {[%clk 0:00:59]}  Rd8 {[%clk 0:00:14]} 41. b4 {[%clk 0:00:59]}  g6 {[%clk 0:00:14]} 42. Ra1 {[%clk 0:00:59]}  f5 {[%clk 0:00:14]} 43. Ra7 {[%clk 0:00:59]}  Bg7 {[%clk 0:00:14]} 44. Nb5 {[%clk 0:00:56]}  Rb8 {[%clk 0:00:13]} 45. Ke3 {[%clk 0:00:53]}  f4+ {[%clk 0:00:13]} 46. Kd3 {[%clk 0:00:54]}  Bf6 {[%clk 0:00:12]} 47. Nc3 {[%clk 0:00:52]}  Re8 {[%clk 0:00:10]} 48. Nxd5 {[%clk 0:00:52]}  Bd8 {[%clk 0:00:10]} 49. Ra8 {[%clk 0:00:49]}  Kf7 {[%clk 0:00:08]} 50. Ra1 {[%clk 0:00:45]}  Ke6 {[%clk 0:00:07]} 51. Re1+ {[%clk 0:00:45]}  Kd7 {[%clk 0:00:07]} 52. Rxe8 {[%clk 0:00:45]}  Kxe8 {[%clk 0:00:07]} 53. Ke4 {[%clk 0:00:46]}  Kd7 {[%clk 0:00:07]} 54. b5 {[%clk 0:00:46]}  Ke6 {[%clk 0:00:06]} 55. Nb4 {[%clk 0:00:40]}  Kd7 {[%clk 0:00:06]} 56. Nd3 {[%clk 0:00:40]}  Bf6 {[%clk 0:00:05]} 57. d5 {[%clk 0:00:39]} 1-0


[Site "https://www.chess.com"]

[Event "Titled Tuesday Blitz January 17 Late 2023"]
[White "Kochetov, Andrey"]
[Black "Paravyan, David"]
[WhiteFideId "24130532"]
[BlackFideId "4194985"]
[WhiteElo "2165"]
[BlackElo "2601"]
[Result "0-1"]
[Round "04"]
[TimeControl "180+2"]
[Date "2023.01.17"]
[WhiteClock "0:00:01"]
[BlackClock "0:00:04"]

1. e4 {[%clk 0:03:00]}  e5 {[%clk 0:02:20]} 2. Nf3 {[%clk 0:02:59]}  Nf6 {[%clk 0:02:20]} 3. Nxe5 {[%clk 0:02:58]}  d6 {[%clk 0:02:20]} 4. Nf3 {[%clk 0:02:59]}  Nxe4 {[%clk 0:02:21]} 5. d4 {[%clk 0:02:58]}  d5 {[%clk 0:02:17]} 6. Bd3 {[%clk 0:02:58]}  Bd6 {[%clk 0:02:17]} 7. O-O {[%clk 0:02:58]}  O-O {[%clk 0:02:18]} 8. h3 {[%clk 0:02:57]}  Re8 {[%clk 0:02:16]} 9. c4 {[%clk 0:02:56]}  c6 {[%clk 0:02:17]} 10. Nc3 {[%clk 0:02:55]}  Nxc3 {[%clk 0:01:59]} 11. bxc3 {[%clk 0:02:55]}  dxc4 {[%clk 0:02:00]} 12. Bxc4 {[%clk 0:02:55]}  b5 {[%clk 0:01:44]} 13. Bxf7+ {[%clk 0:02:13]}  Kxf7 {[%clk 0:01:43]} 14. Ng5+ {[%clk 0:02:11]}  Kg6 {[%clk 0:01:32]} 15. g4 {[%clk 0:01:47]}  Qf6 {[%clk 0:01:08]} 16. f4 {[%clk 0:01:28]}  Bf5 {[%clk 0:01:08]} 17. gxf5+ {[%clk 0:00:59]}  Qxf5 {[%clk 0:01:09]} 18. Rf2 {[%clk 0:00:43]}  h6 {[%clk 0:00:37]} 19. Rg2 {[%clk 0:00:29]}  Kf6 {[%clk 0:00:37]} 20. Qh5 {[%clk 0:00:16]}  Re1+ {[%clk 0:00:14]} 21. Kf2 {[%clk 0:00:16]}  Re7 {[%clk 0:00:02]} 22. Bd2 {[%clk 0:00:03]}  hxg5 {[%clk 0:00:03]} 23. Rxg5 {[%clk 0:00:02]}  Qd3 {[%clk 0:00:03]} 24. Rag1 {[%clk 0:00:01]}  Qxd2+ {[%clk 0:00:04]} 25. Kg3 {[%clk 0:00:01]}  Qxf4+ {[%clk 0:00:04]} 26. Kg2 {[%clk 0:00:01]}  Qh2+ {[%clk 0:00:05]} 27. Kf1 {[%clk 0:00:01]}  Qf4+ {[%clk 0:00:05]} 28. Kg2 {[%clk 0:00:01]}  Qxg5+ {[%clk 0:00:04]} 0-1


[Site "https://www.chess.com"]

[Event "Titled Tuesday Blitz January 17 Late 2023"]
[White "Pert, Richard G"]
[Black "Dardha, Daniel"]
[WhiteFideId "404748"]
[BlackFideId "240990"]
[WhiteElo "2412"]
[BlackElo "2631"]
[Result "0-1"]
[Round "04"]
[TimeControl "180+2"]
[Date "2023.01.17"]
[WhiteClock "0:00:18"]
[BlackClock "0:00:15"]

1. d4 {[%clk 0:03:00]}  Nf6 {[%clk 0:02:55]} 2. Bg5 {[%clk 0:02:59]}  g6 {[%clk 0:02:44]} 3. Bxf6 {[%clk 0:02:57]}  exf6 {[%clk 0:02:45]} 4. e3 {[%clk 0:02:55]}  d5 {[%clk 0:02:44]} 5. Ne2 {[%clk 0:02:50]}  c6 {[%clk 0:02:40]} 6. g3 {[%clk 0:02:50]}  Bd6 {[%clk 0:02:40]} 7. Bg2 {[%clk 0:02:50]}  Nd7 {[%clk 0:02:40]} 8. Nd2 {[%clk 0:02:47]}  f5 {[%clk 0:02:34]} 9. c4 {[%clk 0:02:46]}  dxc4 {[%clk 0:02:34]} 10. Nxc4 {[%clk 0:02:46]}  Bc7 {[%clk 0:02:35]} 11. Rc1 {[%clk 0:02:42]}  Nf6 {[%clk 0:02:31]} 12. b4 {[%clk 0:02:40]}  Be6 {[%clk 0:02:29]} 13. a4 {[%clk 0:02:35]}  h5 {[%clk 0:02:27]} 14. Nf4 {[%clk 0:02:30]}  Bxf4 {[%clk 0:02:25]} 15. gxf4 {[%clk 0:02:28]}  Bd5 {[%clk 0:02:20]} 16. Rg1 {[%clk 0:02:14]}  Bxg2 {[%clk 0:02:15]} 17. Rxg2 {[%clk 0:02:15]}  Qd5 {[%clk 0:02:13]} 18. f3 {[%clk 0:02:15]}  Rd8 {[%clk 0:01:56]} 19. Ne5 {[%clk 0:02:11]}  Nd7 {[%clk 0:01:49]} 20. Nd3 {[%clk 0:02:04]}  O-O {[%clk 0:01:45]} 21. Kf2 {[%clk 0:01:44]}  Kh7 {[%clk 0:01:37]} 22. Qc2 {[%clk 0:01:41]}  a5 {[%clk 0:01:34]} 23. Qc4 {[%clk 0:01:37]}  Qxc4 {[%clk 0:01:23]} 24. Rxc4 {[%clk 0:01:37]}  Nb6 {[%clk 0:01:24]} 25. Rc1 {[%clk 0:01:20]}  axb4 {[%clk 0:01:23]} 26. a5 {[%clk 0:01:20]}  Nd5 {[%clk 0:01:23]} 27. Rb1 {[%clk 0:01:16]}  Rfe8 {[%clk 0:01:08]} 28. Ne5 {[%clk 0:01:11]}  f6 {[%clk 0:01:02]} 29. Nc4 {[%clk 0:01:11]}  Re7 {[%clk 0:00:52]} 30. Rb3 {[%clk 0:01:10]}  Rde8 {[%clk 0:00:41]} 31. Rg1 {[%clk 0:01:08]}  Re6 {[%clk 0:00:36]} 32. Ra1 {[%clk 0:01:02]}  h4 {[%clk 0:00:35]} 33. a6 {[%clk 0:00:40]}  bxa6 {[%clk 0:00:31]} 34. Rxa6 {[%clk 0:00:39]}  Nxf4 {[%clk 0:00:11]} 35. exf4 {[%clk 0:00:24]}  Re2+ {[%clk 0:00:11]} 36. Kg1 {[%clk 0:00:24]}  Re1+ {[%clk 0:00:12]} 37. Kg2 {[%clk 0:00:24]}  R8e2+ {[%clk 0:00:13]} 38. Kh3 {[%clk 0:00:25]}  Rh1 {[%clk 0:00:14]} 39. Kxh4 {[%clk 0:00:18]}  Rhxh2+ {[%clk 0:00:14]} 40. Kg3 {[%clk 0:00:18]}  Reg2# {[%clk 0:00:15]} 0-1


[Site "https://www.chess.com"]

[Event "Titled Tuesday Blitz January 17 Late 2023"]
[White "Sanal, Vahap"]
[Black "Rodrigues, Tiago Pereira"]
[WhiteFideId "6300545"]
[BlackFideId "2101203"]
[WhiteElo "2600"]
[BlackElo "2155"]
[Result "1-0"]
[Round "04"]
[TimeControl "180+2"]
[Date "2023.01.17"]
[WhiteClock "0:00:34"]
[BlackClock "0:00:01"]

1. d4 {[%clk 0:02:59]}  d5 {[%clk 0:02:44]} 2. c4 {[%clk 0:02:59]}  c6 {[%clk 0:02:43]} 3. cxd5 {[%clk 0:02:58]}  cxd5 {[%clk 0:02:44]} 4. Bf4 {[%clk 0:02:59]}  Nc6 {[%clk 0:02:42]} 5. e3 {[%clk 0:02:59]}  e6 {[%clk 0:02:42]} 6. Nc3 {[%clk 0:02:58]}  Bd6 {[%clk 0:02:40]} 7. Bg3 {[%clk 0:02:58]}  Nge7 {[%clk 0:02:37]} 8. Bd3 {[%clk 0:02:59]}  b6 {[%clk 0:02:34]} 9. Nf3 {[%clk 0:02:55]}  Bb7 {[%clk 0:02:32]} 10. a3 {[%clk 0:02:52]}  Rc8 {[%clk 0:02:31]} 11. Rc1 {[%clk 0:02:50]}  h6 {[%clk 0:02:30]} 12. Bb1 {[%clk 0:02:43]}  f5 {[%clk 0:02:29]} 13. Nb5 {[%clk 0:02:39]}  Bb8 {[%clk 0:02:28]} 14. Bxb8 {[%clk 0:02:35]}  Rxb8 {[%clk 0:02:26]} 15. Ne5 {[%clk 0:02:34]}  O-O {[%clk 0:02:25]} 16. O-O {[%clk 0:02:30]}  a6 {[%clk 0:02:10]} 17. Nxc6 {[%clk 0:02:29]}  Bxc6 {[%clk 0:02:08]} 18. Nc3 {[%clk 0:02:30]}  Qd6 {[%clk 0:02:07]} 19. Bd3 {[%clk 0:02:27]}  a5 {[%clk 0:02:05]} 20. Nb5 {[%clk 0:02:23]}  Bxb5 {[%clk 0:01:58]} 21. Bxb5 {[%clk 0:02:23]}  Rfc8 {[%clk 0:01:58]} 22. Qa4 {[%clk 0:02:17]}  Rxc1 {[%clk 0:01:56]} 23. Rxc1 {[%clk 0:02:17]}  Rc8 {[%clk 0:01:57]} 24. Rxc8+ {[%clk 0:02:15]}  Nxc8 {[%clk 0:01:58]} 25. h3 {[%clk 0:02:02]}  Qc7 {[%clk 0:01:49]} 26. Bd7 {[%clk 0:01:50]}  Kf7 {[%clk 0:01:46]} 27. Bxc8 {[%clk 0:01:45]}  Qxc8 {[%clk 0:01:47]} 28. Qb5 {[%clk 0:01:45]}  Qc7 {[%clk 0:01:46]} 29. g3 {[%clk 0:01:45]}  g6 {[%clk 0:01:45]} 30. Kg2 {[%clk 0:01:46]}  Ke7 {[%clk 0:01:44]} 31. b4 {[%clk 0:01:44]}  axb4 {[%clk 0:01:43]} 32. Qxb4+ {[%clk 0:01:45]}  Qd6 {[%clk 0:01:39]} 33. Qa4 {[%clk 0:01:46]}  h5 {[%clk 0:01:11]} 34. Qa7+ {[%clk 0:01:45]}  Kf6 {[%clk 0:01:05]} 35. h4 {[%clk 0:01:46]}  Qc6 {[%clk 0:01:00]} 36. a4 {[%clk 0:01:42]}  Qd6 {[%clk 0:00:56]} 37. Qa6 {[%clk 0:01:37]}  Qc7 {[%clk 0:00:52]} 38. Qa8 {[%clk 0:01:37]}  Kg7 {[%clk 0:00:51]} 39. Qe8 {[%clk 0:01:37]}  Qd6 {[%clk 0:00:43]} 40. Qc8 {[%clk 0:01:37]}  Kf7 {[%clk 0:00:42]} 41. Kf3 {[%clk 0:01:34]}  Kg7 {[%clk 0:00:38]} 42. Qa6 {[%clk 0:01:32]}  Qc7 {[%clk 0:00:36]} 43. Qb5 {[%clk 0:01:29]}  Kf7 {[%clk 0:00:36]} 44. Qb3 {[%clk 0:01:22]}  Ke7 {[%clk 0:00:33]} 45. Qb4+ {[%clk 0:01:21]}  Kf7 {[%clk 0:00:33]} 46. Qb5 {[%clk 0:01:09]}  Ke7 {[%clk 0:00:32]} 47. Qa6 {[%clk 0:01:09]}  Qb8 {[%clk 0:00:29]} 48. Ke2 {[%clk 0:01:07]}  Kd7 {[%clk 0:00:26]} 49. Qb5+ {[%clk 0:01:07]}  Kc7 {[%clk 0:00:23]} 50. Kf3 {[%clk 0:01:05]}  Qd8 {[%clk 0:00:13]} 51. a5 {[%clk 0:01:02]}  bxa5 {[%clk 0:00:06]} 52. Qxa5+ {[%clk 0:01:03]}  Kd7 {[%clk 0:00:07]} 53. Qxd8+ {[%clk 0:01:03]}  Kxd8 {[%clk 0:00:08]} 54. Kf4 {[%clk 0:01:04]}  Ke7 {[%clk 0:00:07]} 55. Ke5 {[%clk 0:00:44]}  Kf7 {[%clk 0:00:07]} 56. Kd6 {[%clk 0:00:44]}  Kf6 {[%clk 0:00:06]} 57. Kd7 {[%clk 0:00:44]}  Kf7 {[%clk 0:00:01]} 58. f4 {[%clk 0:00:34]} 1-0


[Site "https://www.chess.com"]

[Event "Titled Tuesday Blitz January 17 Late 2023"]
[White "Hirneise, Jens"]
[Black "Pap, Gyula"]
[WhiteFideId "24614734"]
[BlackFideId "725323"]
[WhiteElo "2277"]
[BlackElo "2429"]
[Result "1-0"]
[Round "04"]
[TimeControl "180+2"]
[Date "2023.01.17"]
[WhiteClock "0:00:09"]
[BlackClock "0:00:05"]

1. e4 {[%clk 0:03:00]}  e5 {[%clk 0:03:00]} 2. Ne2 {[%clk 0:03:00]}  Nc6 {[%clk 0:02:54]} 3. d4 {[%clk 0:03:00]}  exd4 {[%clk 0:02:54]} 4. Nxd4 {[%clk 0:03:01]}  Nf6 {[%clk 0:02:55]} 5. Nxc6 {[%clk 0:03:00]}  bxc6 {[%clk 0:02:55]} 6. Qe2 {[%clk 0:03:01]}  Qe7 {[%clk 0:02:46]} 7. Nd2 {[%clk 0:02:58]}  d6 {[%clk 0:02:28]} 8. g3 {[%clk 0:02:57]}  g6 {[%clk 0:02:15]} 9. Bg2 {[%clk 0:02:56]}  Nd7 {[%clk 0:02:16]} 10. e5 {[%clk 0:02:48]}  d5 {[%clk 0:01:55]} 11. f4 {[%clk 0:02:44]}  Nc5 {[%clk 0:01:50]} 12. c4 {[%clk 0:02:41]}  Ba6 {[%clk 0:01:42]} 13. b4 {[%clk 0:02:36]}  Na4 {[%clk 0:01:02]} 14. b5 {[%clk 0:02:32]}  Bc8 {[%clk 0:00:55]} 15. cxd5 {[%clk 0:02:26]}  Bg7 {[%clk 0:00:47]} 16. d6 {[%clk 0:02:22]}  Qd8 {[%clk 0:00:42]} 17. Bxc6+ {[%clk 0:02:18]}  Bd7 {[%clk 0:00:42]} 18. dxc7 {[%clk 0:01:19]}  Qc8 {[%clk 0:00:42]} 19. Bxa8 {[%clk 0:01:11]}  Qxa8 {[%clk 0:00:43]} 20. Qe4 {[%clk 0:01:10]}  O-O {[%clk 0:00:34]} 21. O-O {[%clk 0:01:02]}  Bxb5 {[%clk 0:00:32]} 22. Qxa8 {[%clk 0:00:55]}  Rxa8 {[%clk 0:00:33]} 23. Rf3 {[%clk 0:00:47]}  Rc8 {[%clk 0:00:32]} 24. Rb3 {[%clk 0:00:39]}  a6 {[%clk 0:00:32]} 25. Ne4 {[%clk 0:00:38]}  Rxc7 {[%clk 0:00:31]} 26. Nd6 {[%clk 0:00:39]}  Nc3 {[%clk 0:00:29]} 27. Nxb5 {[%clk 0:00:33]}  axb5 {[%clk 0:00:30]} 28. Bd2 {[%clk 0:00:31]}  Ne2+ {[%clk 0:00:27]} 29. Kf2 {[%clk 0:00:31]}  Nd4 {[%clk 0:00:28]} 30. Rc3 {[%clk 0:00:30]}  Rd7 {[%clk 0:00:21]} 31. Rc8+ {[%clk 0:00:29]}  Bf8 {[%clk 0:00:21]} 32. Bb4 {[%clk 0:00:29]}  Ne6 {[%clk 0:00:22]} 33. Bxf8 {[%clk 0:00:30]}  Nxf8 {[%clk 0:00:22]} 34. Ke2 {[%clk 0:00:28]}  Kg7 {[%clk 0:00:21]} 35. Rb1 {[%clk 0:00:28]}  Ra7 {[%clk 0:00:19]} 36. Rb2 {[%clk 0:00:26]}  Ne6 {[%clk 0:00:19]} 37. Rb8 {[%clk 0:00:24]}  h5 {[%clk 0:00:18]} 38. Kf2 {[%clk 0:00:22]}  Nd4 {[%clk 0:00:17]} 39. Rd8 {[%clk 0:00:23]}  Ne6 {[%clk 0:00:17]} 40. Rd5 {[%clk 0:00:22]}  b4 {[%clk 0:00:16]} 41. Rb5 {[%clk 0:00:18]}  Ra3 {[%clk 0:00:14]} 42. R5xb4 {[%clk 0:00:18]}  Nc5 {[%clk 0:00:15]} 43. Kg2 {[%clk 0:00:15]}  Ra8 {[%clk 0:00:12]} 44. Rc4 {[%clk 0:00:15]}  Nd3 {[%clk 0:00:12]} 45. Rd2 {[%clk 0:00:15]}  Ra3 {[%clk 0:00:10]} 46. Rd4 {[%clk 0:00:14]}  Nc1 {[%clk 0:00:09]} 47. Rd7 {[%clk 0:00:14]}  Kg8 {[%clk 0:00:08]} 48. Rc2 {[%clk 0:00:13]}  Nxa2 {[%clk 0:00:07]} 49. Rcc7 {[%clk 0:00:11]}  Nb4 {[%clk 0:00:06]} 50. Rxf7 {[%clk 0:00:12]}  Ra2+ {[%clk 0:00:06]} 51. Kf3 {[%clk 0:00:12]}  Ra3+ {[%clk 0:00:06]} 52. Ke4 {[%clk 0:00:12]}  Ra4 {[%clk 0:00:07]} 53. Ke3 {[%clk 0:00:09]}  Nd5+ {[%clk 0:00:06]} 54. Kf2 {[%clk 0:00:09]}  Ra2+ {[%clk 0:00:06]} 55. Kf3 {[%clk 0:00:09]}  Ra3+ {[%clk 0:00:07]} 56. Ke4 {[%clk 0:00:09]}  Nxc7 {[%clk 0:00:07]} 57. Rxc7 {[%clk 0:00:10]}  Ra2 {[%clk 0:00:08]} 58. h3 {[%clk 0:00:09]}  Ra3 {[%clk 0:00:08]} 59. e6 {[%clk 0:00:08]}  Kf8 {[%clk 0:00:04]} 60. Ke5 {[%clk 0:00:08]}  Rxg3 {[%clk 0:00:04]} 61. Kf6 {[%clk 0:00:08]}  Kg8 {[%clk 0:00:05]} 62. Rc8+ {[%clk 0:00:08]}  Kh7 {[%clk 0:00:05]} 63. e7 {[%clk 0:00:09]} 1-0


[Site "https://www.chess.com"]

[Event "Titled Tuesday Blitz January 17 Late 2023"]
[White "Iniyan, P"]
[Black "Baules Rodriguez, Jorge Luis"]
[WhiteFideId "25002767"]
[BlackFideId "6600247"]
[WhiteElo "2525"]
[BlackElo "2304"]
[Result "1-0"]
[Round "04"]
[TimeControl "180+2"]
[Date "2023.01.17"]
[WhiteClock "0:01:34"]
[BlackClock "0:00:09"]

1. b3 {[%clk 0:03:00]}  Nf6 {[%clk 0:02:58]} 2. Bb2 {[%clk 0:03:01]}  g6 {[%clk 0:02:58]} 3. c4 {[%clk 0:03:02]}  Bg7 {[%clk 0:02:57]} 4. h4 {[%clk 0:02:59]}  O-O {[%clk 0:02:47]} 5. Qc2 {[%clk 0:02:56]}  h5 {[%clk 0:02:15]} 6. e3 {[%clk 0:02:54]}  b6 {[%clk 0:01:53]} 7. Nf3 {[%clk 0:02:53]}  Bb7 {[%clk 0:01:53]} 8. Ng5 {[%clk 0:02:53]}  c5 {[%clk 0:01:36]} 9. f3 {[%clk 0:02:43]}  d5 {[%clk 0:01:23]} 10. cxd5 {[%clk 0:02:44]}  Qxd5 {[%clk 0:01:10]} 11. Bc4 {[%clk 0:02:44]}  Qf5 {[%clk 0:00:58]} 12. Bd3 {[%clk 0:02:06]}  Qd7 {[%clk 0:00:43]} 13. Na3 {[%clk 0:02:06]}  Nc6 {[%clk 0:00:37]} 14. Bc4 {[%clk 0:02:02]}  Nb4 {[%clk 0:00:35]} 15. Qxg6 {[%clk 0:02:01]}  Bd5 {[%clk 0:00:14]} 16. Qb1 {[%clk 0:01:55]}  Bxc4 {[%clk 0:00:14]} 17. Nxc4 {[%clk 0:01:48]}  Nd3+ {[%clk 0:00:13]} 18. Ke2 {[%clk 0:01:47]}  Rfd8 {[%clk 0:00:11]} 19. Rd1 {[%clk 0:01:43]}  b5 {[%clk 0:00:11]} 20. Ne5 {[%clk 0:01:43]}  Nxe5 {[%clk 0:00:11]} 21. Bxe5 {[%clk 0:01:44]}  c4 {[%clk 0:00:10]} 22. bxc4 {[%clk 0:01:41]}  bxc4 {[%clk 0:00:09]} 23. Bxf6 {[%clk 0:01:39]}  exf6 {[%clk 0:00:10]} 24. Qh7+ {[%clk 0:01:39]}  Kf8 {[%clk 0:00:10]} 25. Ne4 {[%clk 0:01:40]}  Qd3+ {[%clk 0:00:10]} 26. Kf2 {[%clk 0:01:39]}  f5 {[%clk 0:00:11]} 27. Ng5 {[%clk 0:01:37]}  Rd7 {[%clk 0:00:10]} 28. Rac1 {[%clk 0:01:34]}  Rc8 {[%clk 0:00:09]} 29. Qxh5 {[%clk 0:01:34]}  c3 {[%clk 0:00:10]} 30. dxc3 {[%clk 0:01:33]}  Qxd1 {[%clk 0:00:09]} 31. Rxd1 {[%clk 0:01:34]} 1-0


[Site "https://www.chess.com"]